bitfinex/quotes_ETHUSD_20251015
["timestamp","ask_amount","ask_price","bid_price","bid_amount"]
[1760488510310,0.2184,4107.5,4106.4,2.43522306]
[1760488510485,0.1216,4106.8,4106.7,2.43504517]
[1760488510883,0.2184,4107.5,4107.4,2.43463017]
[1760488511217,0.2184,4108.0,4107.5,2.4345709]
[1760488511393,0.2184,4108.0,4107.9,2.43433384]
[1760488511598,0.3241,4107.9,4106.6,2.43510446]
[1760488511914,0.1216,4107.7,4107.6,2.43451163]
[1760488512080,0.1216,4107.7,4106.7,0.1216]
[1760488512081,0.3241,4107.7,4106.2,4.87068334]
[1760488512283,0.34,4108.0,4107.9,2.43433384]
[1760488512643,0.5425,4108.0,4107.8,2.43438693]
[1760488512819,0.3241,4107.9,4106.1,0.6638]
[1760488513115,0.3241,4107.9,4107.8,2.4343931]
[1760488513299,0.3241,4107.9,4105.5,0.002]
[1760488513614,0.3241,4107.9,4106.5,0.6336]
[1760488513822,0.3241,4107.9,4107.8,2.4343931]
[1760488514190,0.3241,4107.9,4106.4,2.43522306]
[1760488514388,0.3241,4107.9,4107.8,2.4343931]
[1760488514593,0.3241,4107.9,4106.6,2.43510446]
[1760488514795,0.35452991,4107.8,4106.5,0.24352231]
[1760488515000,0.3241,4107.8,4107.7,2.43445236]
[1760488515316,0.3241,4107.8,4107.6,2.43445489]
[1760488515491,0.2184,4108.0,4107.8,2.4343898]
[1760488515698,0.2184,4108.0,4107.9,2.43433384]
[1760488516535,0.5425,4108.0,4107.9,2.43433384]
[1760488517007,0.3241,4108.6,4107.7,2.43441664]
[1760488517332,0.35452472,4108.5,4107.5,2.43455807]
[1760488517710,0.35452472,4108.5,4108.3,2.4340771]
[1760488517947,0.3241,4108.4,4106.5,0.4494]
[1760488518125,0.03042621,4108.3,4106.1,0.2144]
[1760488518435,2.297025,4108.0,4106.2,2.43534167]
[1760488518634,1.0599725,4107.9,4106.5,2.43516376]
[1760488518843,0.35452991,4107.8,4107.3,2.43466833]
[1760488519140,0.35452991,4107.8,4106.1,2.43540098]
[1760488519141,1.92,4107.6,4106.1,2.43540098]
[1760488519314,0.2184,4106.2,4106.1,2.43540098]
[1760488519520,0.0966,4106.6,4105.8,2.43552823]
[1760488519707,0.0966,4106.6,4106.5,2.43516376]
[1760488520038,0.2184,4107.5,4107.4,2.43463017]
[1760488520239,0.2184,4107.9,4106.5,0.69291638]
[1760488520543,0.3241,4107.5,4107.4,2.43463017]
[1760488520836,0.2184,4107.9,4107.6,2.43447444]
[1760488521137,0.2184,4107.9,4107.8,2.4343931]
[1760488521450,0.3241,4108.4,4107.1,0.6645]
[1760488521747,0.3241,4108.8,4108.6,2.43386269]
[1760488521946,0.1557,4108.9,4108.7,2.43385985]
[1760488522240,9.744786,4108.7,4107.9,2.43428884]
[1760488522407,3.30002483,4108.6,4108.1,2.43419315]
[1760488522613,4.852843,4108.4,4108.1,2.43419315]
[1760488522812,0.35452621,4108.3,4108.1,2.43419315]
[1760488523110,0.3241,4108.2,4108.1,2.43419315]
[1760488523727,0.1216,4108.1,4107.7,2.43441469]
[1760488524047,1.92,4107.6,4106.6,0.1216]
[1760488524219,0.03043213,4107.5,4107.2,2.4346975]
[1760488524419,0.4447,4107.4,4107.3,2.43466977]
[1760488524651,0.1216,4107.0,4106.5,0.002]
[1760488524856,0.1216,4106.6,4106.5,2.43716376]
[1760488525162,0.2184,4107.3,4106.5,0.4514]
[1760488525362,0.03043435,4107.2,4106.9,2.43492578]
[1760488525657,0.2184,4107.3,4107.2,2.43474873]
[1760488525950,0.1216,4107.2,4107.1,2.43480801]
[1760488526120,0.1216,4107.2,4107.1,3.34278881]
[1760488526309,0.4413,4108.6,4108.1,2.43419767]
[1760488526513,0.4413,4108.6,4108.3,2.43409682]
[1760488526947,0.4423,4108.4,4107.1,1.0295808]
[1760488527149,0.2251,4107.2,4106.0,2.4374379]
[1760488527350,0.1216,4106.8,4106.7,2.43504517]
[1760488529563,0.5595,4106.8,4106.7,2.43504517]
[1760488529766,0.1216,4106.7,4106.5,2.43713434]
[1760488529940,0.1216,4106.7,4106.6,2.43510446]
[1760488532541,0.03042991,4107.8,4107.7,2.43441926]
[1760488532741,0.4379,4107.9,4107.7,2.43441926]
[1760488532937,0.2184,4108.0,4106.7,2.43504517]
[1760488533246,0.1216,4107.2,4107.1,2.43480801]
[1760488533660,0.1216,4107.2,4106.5,0.002]
[1760488533661,0.5562,4107.2,4106.5,0.002]
[1760488533838,0.4346,4107.2,4107.1,2.43480801]
[1760488534035,0.1216,4106.6,4106.5,2.43710905]
[1760488534544,0.5529,4106.6,4106.5,0.002]
[1760488534863,0.5529,4106.6,4106.5,2.43716376]
[1760488535166,0.1216,4106.6,4106.5,0.002]
[1760488535401,0.5529,4106.6,4106.5,0.002]
[1760488536186,0.5529,4106.6,4106.5,2.43716376]
[1760488536387,0.1216,4106.6,4106.5,2.43716376]
[1760488537199,0.38189089,4107.8,4107.0,2.43482553]
[1760488537421,0.80689089,4107.8,4106.5,0.4514]
[1760488537579,0.1216,4106.9,4106.7,2.43504517]
[1760488537769,0.1216,4107.4,4106.9,2.43492658]
[1760488538109,0.1216,4107.4,4107.3,2.64978945]
[1760488538284,0.1216,4107.4,4107.3,3.20318529]
[1760488538485,4.320474,4108.3,4107.3,1.21789584]
[1760488538696,0.1216,4107.5,4106.9,0.1216]
[1760488538869,0.1216,4107.2,4107.1,2.43480801]
[1760488539066,0.1216,4107.2,4107.1,2.64990801]
[1760488539480,0.1216,4107.8,4107.7,2.43445236]
[1760488539685,0.001,4108.4,4106.5,0.4321]
[1760488539686,0.2205,4107.9,4106.5,0.4321]
[1760488539882,0.2205,4107.9,4106.6,0.30817315]
[1760488540103,0.1216,4107.6,4107.5,2.43451993]
[1760488540412,0.03042991,4107.8,4107.5,2.4345709]
[1760488540578,0.45342991,4107.8,4107.5,2.4345709]
[1760488540774,1.92,4108.2,4107.8,2.43433505]
[1760488540981,0.1216,4107.8,4107.2,0.2151]
[1760488541197,0.1216,4107.8,4107.7,2.43445236]
[1760488542474,0.1216,4107.8,4107.7,2.86455236]
[1760488542929,0.001,4108.4,4108.3,2.43409682]
[1760488543104,0.2223,4107.8,4107.0,2.43486729]
[1760488543311,0.2223,4107.8,4107.6,2.43449368]
[1760488543530,0.2223,4107.8,4107.7,2.43445236]
[1760488543944,0.03042695,4108.2,4107.8,2.43433877]
[1760488544109,1.92,4108.0,4107.8,2.43433877]
[1760488544313,0.2223,4107.9,4107.8,2.43433877]
[1760488544841,0.001,4108.4,4108.0,2.43427458]
[1760488545041,0.001,4108.4,4107.8,2.43433773]
[1760488545198,0.001,4108.4,4107.1,0.2151]
[1760488545199,0.001,4108.4,4108.1,2.43416445]
[1760488545395,0.03142546,4108.4,4108.1,2.43416445]
[1760488545625,0.45252546,4108.4,4108.2,2.43415128]
[1760488545824,0.001,4108.4,4107.6,0.4301]
[1760488546097,0.001,4108.4,4108.3,2.43409682]
[1760488549819,0.001,4108.4,4108.3,2.86419682]
[1760488550209,0.001,4108.4,4108.3,2.43409682]
[1760488553230,0.1226,4108.4,4108.3,2.43409682]
[1760488553632,0.1226,4108.4,4107.5,0.4301]
[1760488553839,0.1216,4108.3,4107.8,2.434389]
[1760488554056,0.1216,4108.3,4108.2,2.43415607]
[1760488556440,0.1216,4108.3,4108.2,2.88235607]
[1760488556620,0.001,4108.4,4108.3,2.43409682]
[1760488557643,0.001,4108.4,4108.3,2.88229682]
[1760488557849,0.001,4108.4,4108.3,3.41414211]
[1760488558858,0.001,4108.4,4108.3,2.96594211]
[1760488559162,0.001,4108.4,4108.3,2.43409682]
[1760488559854,0.001,4108.4,4108.3,2.88229682]
[1760488561071,1e-08,4109.3,4109.2,2.43356371]
[1760488561773,1e-08,4109.3,4109.2,2.88176371]
[1760488564449,1e-08,4109.3,4109.2,3.51536371]
[1760488564626,1e-08,4109.3,4109.2,4.13171441]
[1760488566592,1e-08,4109.3,4109.2,4.25331441]
[1760488566890,1e-08,4109.3,4109.2,3.17151441]
[1760488567386,1e-08,4109.3,4109.2,3.61971441]
[1760488569694,1e-08,4109.3,4109.2,4.25331441]
[1760488571548,1e-08,4109.3,4109.2,3.61971441]
[1760488571748,1e-08,4109.3,4109.2,3.17151441]
[1760488572386,0.44390001,4109.3,4109.2,2.43356371]
[1760488572586,0.44390001,4109.3,4108.6,0.1216]
[1760488572788,1e-08,4109.3,4109.2,2.43356371]
[1760488573390,1e-08,4109.3,4109.2,2.55516371]
[1760488576285,1e-08,4109.3,4109.2,3.63346371]
[1760488576497,1e-08,4109.3,4109.2,3.79567468]
[1760488576814,1e-08,4109.3,4109.2,4.24037468]
[1760488577602,1e-08,4109.3,4109.2,3.79567468]
[1760488578011,1e-08,4109.3,4109.2,4.24037468]
[1760488581421,1e-08,4109.3,4109.2,6.80737468]
[1760488582317,1e-08,4109.3,4109.2,4.24037468]
[1760488583201,1e-08,4109.3,4109.2,6.80737468]
[1760488586901,1e-08,4109.3,4109.2,6.36267468]
[1760488587942,1e-08,4109.3,4109.2,6.80737468]
[1760488588346,1e-08,4109.3,4109.2,8.72737468]
[1760488588751,0.2334,4112.2,4111.4,2.43226151]
[1760488588960,0.2321,4112.5,4111.4,3.06586151]
[1760488589125,0.1635,4114.1,4111.4,7.99756151]
[1760488589314,0.1635,4114.1,4111.4,8.22966151]
[1760488589519,0.1635,4114.1,4111.4,9.31726185]
[1760488589922,0.2321,4113.3,4113.0,2.43131534]
[1760488590133,0.2321,4113.3,4113.2,2.43119712]
[1760488590329,0.1635,4114.1,4114.0,2.43072435]
[1760488593035,0.001,4114.1,4113.8,3.2006]
[1760488593357,0.001,4114.1,4114.0,2.43072435]
[1760488593560,0.001,4114.1,4114.0,3.06432435]
[1760488593924,0.001,4114.1,4114.0,2.43072435]
[1760488594329,0.001,4114.1,4114.0,3.06432435]
[1760488594655,0.001,4114.1,4114.0,3.50902435]
[1760488594848,0.001,4114.1,4114.0,4.1637705]
[1760488595251,0.2321,4116.0,4115.2,2.43001555]
[1760488596060,0.2321,4116.0,4115.4,2.42989745]
[1760488597364,1e-08,4115.5,4115.4,2.42989745]
[1760488597965,1e-08,4115.5,4115.4,3.06349745]
[1760488598166,1e-08,4115.5,4115.4,3.61284875]
[1760488598845,1e-08,4115.5,4115.4,3.73364875]
[1760488599544,1e-08,4115.5,4115.4,3.10004875]
[1760488599734,1e-08,4115.5,4115.4,2.55069745]
[1760488600360,1e-08,4115.5,4115.4,3.62969745]
[1760488600658,1e-08,4115.5,4115.4,3.18429745]
[1760488600860,1e-08,4115.5,4115.4,2.55069745]
[1760488606395,1e-08,4115.5,4115.4,2.42989745]
[1760488606891,1e-08,4115.5,4115.4,2.91588875]
[1760488607376,1e-08,4115.5,4115.4,2.42989745]
[1760488609000,1e-08,4115.5,4115.3,2.42994356]
[1760488609299,1e-08,4115.5,4115.4,2.42989745]
[1760488609594,1e-08,4115.5,4114.1,2.43066527]
[1760488609797,1e-08,4115.5,4115.4,2.42989745]
[1760488610280,1e-08,4115.5,4115.2,2.43000974]
[1760488610505,1e-08,4115.5,4115.2,2.42996573]
[1760488611108,0.00100001,4115.5,4115.2,2.42996573]
[1760488611321,0.00100001,4115.5,4115.3,2.4299455]
[1760488612223,0.00100001,4115.5,4115.1,2.43205523]
[1760488612402,0.00100001,4115.5,4115.4,2.42989745]
[1760488613927,0.00100001,4115.5,4115.4,2.91608756]
[1760488614088,0.00100001,4115.5,4115.4,2.42989745]
[1760488620043,0.00100001,4115.5,4115.1,0.002]
[1760488620213,0.00100001,4115.5,4115.2,2.42997187]
[1760488620406,0.00100001,4115.5,4115.1,2.43205849]
[1760488620614,0.1208,4115.2,4115.1,0.002]
[1760488620807,2.0408,4115.2,4115.1,0.002]
[1760488621142,0.00100001,4115.5,4115.4,2.42989745]
[1760488621344,0.00100001,4115.5,4115.4,3.40382875]
[1760488621643,0.00100001,4115.5,4115.4,3.06002875]
[1760488621843,0.00100001,4115.5,4115.4,3.52462875]
[1760488622544,0.00100001,4115.5,4115.4,4.15822875]
[1760488622711,1e-08,4116.4,4116.3,2.42936617]
[1760488622910,1e-08,4116.4,4116.3,3.03604775]
[1760488623646,1e-08,4116.4,4116.3,2.42936617]
[1760488623953,1e-08,4116.4,4116.3,2.89396617]
[1760488624153,1e-08,4116.4,4116.3,2.55016617]
[1760488625213,1e-08,4116.4,4116.3,3.01476617]
[1760488625426,1e-08,4116.4,4116.3,2.55016617]
[1760488625653,1e-08,4116.4,4116.3,3.51272775]
[1760488626761,1e-08,4116.4,4116.3,3.04812775]
[1760488627215,1e-08,4116.4,4116.3,2.55016617]
[1760488627617,1e-08,4116.4,4116.3,3.01476617]
[1760488627817,1e-08,4116.4,4116.3,2.42936617]
[1760488628618,1e-08,4116.4,4116.0,2.42951674]
[1760488628819,1e-08,4116.4,4115.1,0.2334]
[1760488629120,0.1208,4116.2,4116.1,2.42948422]
[1760488629844,0.1208,4116.2,4115.5,0.1208]
[1760488630022,0.1208,4116.2,4116.1,2.42948422]
[1760488630222,0.1208,4116.2,4116.0,2.42954209]
[1760488630647,0.1208,4116.2,4115.5,0.1208]
[1760488630853,0.116,4115.6,4115.5,2.42983841]
[1760488631019,0.2368,4115.6,4115.5,2.42983841]
[1760488631540,0.2368,4115.6,4115.2,2.43001555]
[1760488631724,0.116,4115.6,4115.2,2.43000311]
[1760488632918,0.1208,4115.2,4115.1,2.4320473]
[1760488633135,0.116,4115.9,4115.8,2.4296613]
[1760488633340,0.116,4115.9,4115.7,2.42971122]
[1760488633575,0.116,4115.9,4115.1,2.89665203]
[1760488633576,0.1208,4115.7,4115.1,0.002]
[1760488633877,0.1208,4115.7,4115.6,2.42977937]
[1760488635158,1e-08,4116.4,4116.2,2.42939595]
[1760488636171,0.1208,4116.2,4115.4,0.1208]
[1760488636380,1e-08,4116.4,4115.2,2.43001555]
[1760488636670,0.1208,4115.8,4115.7,2.42972033]
[1760488637841,0.1208,4115.8,4115.1,0.3442]
[1760488638072,1.92,4115.6,4115.2,2.42996062]
[1760488638282,0.1159,4115.9,4115.1,0.002]
[1760488638471,0.1208,4115.5,4115.3,2.4299565]
[1760488638674,0.1208,4115.5,4115.4,2.42989745]
[1760488639059,1e-08,4116.4,4115.5,2.42983841]
[1760488639280,0.1208,4116.1,4115.5,2.42983841]
[1760488639583,0.1208,4116.1,4115.5,2.72948225]
[1760488639753,0.1208,4116.1,4116.0,2.42954324]
[1760488640157,0.1208,4116.1,4115.4,0.1208]
[1760488640349,0.1208,4115.8,4115.2,2.55081555]
[1760488640769,0.1208,4115.8,4115.7,2.42972033]
[1760488640978,0.1155,4115.9,4115.1,0.002]
[1760488641184,0.1208,4115.5,4115.2,2.43001555]
[1760488641493,0.1208,4115.5,4115.4,2.42989745]
[1760488641695,0.1208,4115.5,4115.1,0.002]
[1760488641996,0.1155,4115.9,4115.2,2.42996273]
[1760488642209,0.1155,4115.9,4115.1,0.002]
[1760488642210,0.0995,4115.8,4115.3,2.42994659]
[1760488642802,0.0995,4115.8,4115.4,2.42988365]
[1760488643404,0.1155,4115.9,4115.4,2.42988365]
[1760488643613,10.408454,4116.3,4115.5,2.42979202]
[1760488643896,0.1152,4116.0,4115.6,2.42977906]
[1760488644995,0.1152,4116.0,4115.3,0.2214]
[1760488645298,0.1208,4115.6,4115.5,2.42983841]
[1760488645873,0.1208,4115.6,4115.5,2.87563841]
[1760488646381,0.1208,4115.6,4115.5,2.42983841]
[1760488646897,0.1208,4115.6,4115.5,2.87563841]
[1760488647808,0.1208,4116.3,4115.9,2.42958992]
[1760488647994,1e-08,4116.4,4116.2,2.42942519]
[1760488648244,1e-08,4116.4,4116.3,2.42936617]
[1760488648420,1e-08,4116.4,4116.3,3.50876617]
[1760488648625,0.001,4117.3,4116.5,0.6336]
[1760488648827,0.001,4117.3,4116.8,0.1208]
[1760488649124,0.001,4117.3,4116.8,5.10347112]
[1760488649323,0.001,4117.3,4116.8,5.54927112]
[1760488651163,0.001,4117.3,4116.8,2.99567112]
[1760488651366,0.001,4117.3,4116.8,2.54987112]
[1760488651547,0.001,4117.3,4116.8,3.04777715]
[1760488651936,0.001,4117.3,4116.8,3.49357715]
[1760488652564,0.001,4117.3,4116.8,3.04777715]
[1760488652742,0.1218,4117.3,4116.8,2.42907112]
[1760488653152,0.1218,4117.3,4116.8,2.87487112]
[1760488653869,0.001,4117.3,4116.8,3.62927112]
[1760488659042,0.001,4117.3,4116.8,3.18347112]
[1760488659343,0.001,4117.3,4116.8,2.54987112]
[1760488659571,0.001,4117.3,4116.8,3.04777715]
[1760488660746,0.1771,4116.9,4116.8,2.54987112]
[1760488660972,0.393,4116.9,4116.8,2.42907112]
[1760488661741,0.1771,4116.9,4116.8,2.42907112]
[1760488661956,0.2761,4116.9,4116.8,2.42907112]
[1760488662566,0.2761,4116.9,4116.6,0.1208]
[1760488662786,0.1771,4116.9,4116.7,2.4290725]
[1760488663108,0.099,4116.8,4116.7,2.4290725]
[1760488663452,0.099,4116.8,4116.6,2.42913544]
[1760488663779,0.099,4116.7,4116.6,2.42913544]
[1760488664453,0.1771,4116.9,4116.4,2.42928484]
[1760488664649,0.001,4116.9,4116.8,2.42907112]
[1760488665064,0.1756,4116.9,4116.8,2.42907112]
[1760488665371,0.3969,4116.9,4116.8,2.42907112]
[1760488666573,0.2964,4116.9,4116.8,2.42907112]
[1760488667213,0.3969,4116.9,4116.8,2.42907112]
[1760488668382,0.3969,4116.9,4116.7,2.42907216]
[1760488668588,0.1756,4116.9,4116.8,2.42907112]
[1760488668900,0.1218,4116.9,4116.8,2.42907112]
[1760488669290,0.001,4116.9,4116.8,2.42907112]
[1760488670776,0.2761,4116.9,4116.4,0.1208]
[1760488670980,0.1771,4116.9,4116.8,2.42907112]
[1760488671304,0.1771,4116.9,4116.7,2.42912061]
[1760488671505,0.2761,4116.9,4116.5,2.42924814]
[1760488671893,0.1771,4116.9,4116.5,2.42924814]
[1760488672105,0.099,4116.8,4116.5,2.42924814]
[1760488672304,0.099,4116.8,4116.7,2.42909056]
[1760488672597,0.1208,4116.6,4116.5,2.42924814]
[1760488672802,0.1208,4116.6,4116.3,2.42932678]
[1760488673009,0.1208,4116.6,4116.5,2.42924814]
[1760488676077,0.1218,4116.9,4116.8,2.42907112]
[1760488676575,0.2964,4116.9,4116.3,2.42936617]
[1760488676816,0.2964,4116.9,4116.8,2.42907112]
[1760488677309,0.2964,4116.9,4116.6,2.42914962]
[1760488677310,3.14604,4116.8,4115.9,2.42956963]
[1760488677490,0.37257812,4116.7,4115.4,0.428]
[1760488677689,0.03036412,4116.7,4115.4,0.428]
[1760488677889,0.13086486,4116.6,4116.1,2.42943869]
[1760488678082,0.1005,4116.5,4115.8,2.429647]
[1760488678285,0.24466633,4116.4,4115.7,2.42969142]
[1760488678484,0.2143,4116.3,4115.2,2.43001555]
[1760488678784,0.2143,4116.3,4116.1,2.42948246]
[1760488678996,0.1164,4116.4,4116.0,2.42953971]
[1760488679279,0.1756,4116.9,4116.2,2.42937682]
[1760488679503,0.1756,4116.9,4115.7,2.42972033]
[1760488679818,0.1756,4116.9,4116.3,0.002]
[1760488680207,0.001,4116.9,4116.3,0.002]
[1760488680818,0.001,4116.9,4116.7,2.42910627]
[1760488681015,0.001,4116.9,4116.4,2.42930716]
[1760488681315,0.001,4116.9,4116.8,2.42907112]
[1760488681679,0.001,4116.9,4116.8,3.12961636]
[1760488683125,0.001,4116.9,4116.8,2.42907112]
[1760488683623,0.001,4116.9,4116.3,0.002]
[1760488684316,0.001,4116.9,4116.4,2.85730716]
[1760488684516,0.001,4116.9,4116.5,0.428]
[1760488684715,0.001,4116.9,4116.8,2.42907112]
[1760488684929,0.001,4116.9,4116.8,2.95769715]
[1760488685225,0.001,4116.9,4116.8,2.42907112]
[1760488685722,0.001,4116.9,4116.8,2.85707112]
[1760488687600,0.001,4116.9,4116.8,2.42907112]
[1760488690136,0.1218,4116.9,4116.8,2.42907112]
[1760488690906,0.2958,4116.9,4116.4,2.42930332]
[1760488691137,0.0997,4116.8,4116.6,2.42914808]
[1760488691338,0.2958,4116.9,4116.4,2.42930716]
[1760488691538,0.2958,4116.9,4116.3,0.002]
[1760488691706,0.2958,4116.9,4116.8,2.42907112]
[1760488692314,0.2958,4116.9,4116.3,0.002]
[1760488692639,0.2958,4116.9,4116.4,2.42930716]
[1760488692841,0.2958,4116.9,4116.7,2.4291224]
[1760488694026,0.3955,4116.9,4116.7,2.4291224]
[1760488694351,4.268391,4116.7,4116.3,0.002]
[1760488694511,0.4877103,4116.6,4116.3,0.002]
[1760488694856,0.03036486,4116.6,4116.3,0.002]
[1760488695016,0.0997,4116.5,4116.3,0.002]
[1760488695350,13.09253733,4116.4,4116.3,0.002]
[1760488695552,12.552289,4116.4,4116.3,0.002]
[1760488695755,12.651989,4116.4,4116.3,0.002]
[1760488696050,23.3030629,4116.4,4116.3,0.002]
[1760488696257,20.4752629,4116.4,4116.3,0.002]
[1760488696560,23.91923074,4116.4,4116.3,0.002]
[1760488696927,34.34954324,4116.0,4115.9,0.002]
[1760488697126,34.98314324,4116.0,4115.9,0.002]
[1760488697328,36.990879,4116.0,4115.9,0.002]
[1760488697855,37.2174048,4116.0,4115.9,0.002]
[1760488698465,37.46961838,4116.0,4115.9,0.002]
[1760488698626,37.46961838,4116.0,4115.5,0.002]
[1760488698627,33.06337937,4115.6,4115.5,0.002]
[1760488698827,35.20990517,4115.6,4115.5,0.002]
[1760488699027,36.53846407,4115.6,4115.5,0.002]
[1760488699223,37.0195956,4115.6,4115.5,0.002]
[1760488700265,37.27180918,4115.6,4115.5,0.002]
[1760488701639,36.7930698,4115.6,4115.5,0.002]
[1760488702759,36.41183827,4115.6,4115.5,0.002]
[1760488704036,35.77823827,4115.6,4115.5,0.002]
[1760488704249,36.41183827,4115.6,4115.5,0.002]
[1760488704870,36.79302831,4115.6,4115.5,0.002]
[1760488707655,19.407788,4114.8,4114.1,0.67]
[1760488707883,21.327788,4114.8,4114.1,0.67]
[1760488708086,6.456862,4114.8,4114.7,0.4372]
[1760488708286,8.131243,4114.8,4114.7,0.4372]
[1760488708475,8.131243,4114.8,4114.7,0.002]
[1760488708798,5.40520932,4114.8,4114.7,0.002]
[1760488709097,2.89183732,4114.8,4114.7,0.4372]
[1760488709255,1.92,4114.8,4114.7,0.4372]
[1760488709585,4.628502,4114.8,4114.7,0.4372]
[1760488709790,1.92,4114.8,4114.7,0.4372]
[1760488710087,4.39975,4114.8,4114.7,0.4372]
[1760488710268,17.68231834,4114.8,4114.7,0.002]
[1760488711185,28.35030634,4114.8,4114.7,0.002]
[1760488711488,24.18445634,4114.8,4114.7,0.002]
[1760488712070,24.91995634,4114.8,4114.7,0.002]
[1760488712282,35.64935811,4114.8,4114.7,0.002]
[1760488712871,35.90157169,4114.8,4114.7,0.002]
[1760488713377,36.28282274,4114.8,4114.7,0.002]
[1760488715378,36.03060916,4114.8,4114.7,0.002]
[1760488715574,35.92870916,4114.8,4114.7,0.002]
[1760488715781,36.03060916,4114.8,4114.7,0.002]
[1760488717299,43.03060916,4114.8,4114.7,0.002]
[1760488718185,43.28282274,4114.8,4114.7,0.002]
[1760488718487,43.51950733,4114.8,4114.7,0.002]
[1760488718792,35.10471083,4114.7,4114.6,1e-08]
[1760488718994,35.10471083,4114.7,4114.3,0.002]
[1760488718995,3.06408804,4114.4,4114.3,0.002]
[1760488719189,5.72989311,4114.4,4114.3,0.002]
[1760488719407,35.80141201,4114.4,4114.3,0.002]
[1760488719595,33.06438344,4113.9,4113.8,0.002]
[1760488719793,35.37579702,4113.9,4113.8,0.002]
[1760488720105,43.84169343,4113.9,4113.8,0.002]
[1760488720415,2.43138656,4112.9,4112.1,0.2185]
[1760488720634,2.5536,4111.8,4110.9,0.2348]
[1760488720921,1.92,4111.4,4110.8,0.2185]
[1760488721123,25.790411,4111.5,4110.8,0.2185]
[1760488721124,2.5536,4112.1,4111.3,0.2185]
[1760488721292,5.221564,4111.7,4111.4,0.45]
[1760488721492,1.92,4111.6,4111.4,0.45]
[1760488721709,5.072905,4111.5,4111.4,0.45]
[1760488721896,4.40415,4111.5,4111.4,0.45]
[1760488722330,25.444685,4111.5,4111.4,0.45]
[1760488722530,2.5536,4111.4,4111.3,0.2185]
[1760488722685,21.27138726,4111.4,4111.3,0.2185]
[1760488722885,19.551984,4111.4,4111.3,0.2185]
[1760488723409,21.353347,4111.4,4111.3,0.2185]
[1760488723587,21.353347,4111.4,4111.3,0.6685]
[1760488723930,22.08383302,4111.4,4111.3,0.6685]
[1760488724143,0.6336,4111.2,4110.8,0.2185]
[1760488724415,1.92,4110.9,4110.8,0.2185]
[1760488724594,4.885251,4110.9,4110.8,0.2185]
[1760488724801,4.885251,4110.9,4110.8,0.6685]
[1760488725101,6.163,4110.9,4110.8,0.6685]
[1760488725827,4.751006,4110.9,4110.8,3.10111652]
[1760488726010,1.92,4110.9,4110.8,3.65450059]
[1760488726209,0.38154163,4111.4,4110.8,1.22188407]
[1760488726383,0.6336,4112.7,4111.4,2.43225096]
[1760488726593,2.5536,4112.2,4111.5,0.45]
[1760488726783,6.808769,4111.8,4111.5,0.45]
[1760488727034,15.25140005,4111.7,4111.6,0.45]
[1760488727209,9.521141,4111.7,4111.6,0.45]
[1760488727538,1.92,4111.7,4111.6,0.45]
[1760488727740,1.92,4111.7,4111.6,2.8821432]
[1760488727937,4.38615,4111.7,4111.6,0.45]
[1760488728709,10.758729,4111.5,4111.4,2.43226151]
[1760488728925,0.1216,4111.5,4111.4,0.45]
[1760488729134,18.647933,4111.5,4111.4,0.45]
[1760488729329,2.0416,4111.5,4111.4,2.88226151]
[1760488729501,2.0416,4111.5,4111.4,0.45]
[1760488729902,21.473092,4111.5,4111.4,0.45]
[1760488730765,6.88143,4111.4,4111.0,0.45]
[1760488730903,1.92,4111.1,4111.0,0.45]
[1760488731241,1.92,4111.1,4110.2,0.2185]
[1760488731242,1.92,4110.7,4110.2,0.2185]
[1760488731533,0.7335,4111.4,4110.2,0.2185]
[1760488731534,0.03040918,4110.6,4110.2,0.2185]
[1760488731716,1.92,4110.7,4110.2,0.2185]
[1760488731899,1.92,4110.4,4110.3,0.45]
[1760488732105,19.49424166,4110.4,4110.3,0.45]
[1760488732303,25.54117,4110.3,4110.0,0.2348]
[1760488732507,0.03041214,4110.2,4110.1,0.45]
[1760488732707,1.92,4110.4,4110.1,0.45]
[1760488732944,0.6336,4111.6,4110.2,0.45]
[1760488733150,2.5536,4111.2,4110.2,0.45]
[1760488733317,20.315205,4111.0,4110.2,2.88294901]
[1760488733639,2.290047,4110.7,4110.2,2.88294901]
[1760488733813,0.6336,4111.6,4110.0,2.66788075]
[1760488733814,1.92,4110.4,4110.3,2.43288248]
[1760488734016,0.38155993,4111.4,4110.6,2.43268789]
[1760488734208,0.38155993,4111.4,4110.8,2.43258979]
[1760488734411,0.38155993,4111.4,4110.0,2.66788341]
[1760488734412,11.76653093,4111.4,4111.3,0.2301]
[1760488734615,11.76653093,4111.4,4111.3,0.6813]
[1760488734815,11.76653093,4111.4,4111.3,0.2301]
[1760488735442,19.94856993,4111.4,4111.3,0.2301]
[1760488735753,2.30155993,4111.4,4111.3,0.6813]
[1760488735945,20.01038593,4111.4,4111.3,0.6813]
[1760488736535,29.70901593,4111.4,4111.3,0.6813]
[1760488737241,24.113842,4111.2,4110.5,0.002]
[1760488737443,19.43017,4111.0,4110.8,0.4512]
[1760488737634,0.38155993,4111.4,4110.8,0.4512]
[1760488737944,1.92,4110.9,4110.8,0.4512]
[1760488738147,6.2258,4110.9,4110.8,0.4512]
[1760488738447,6.2258,4110.9,4110.5,0.002]
[1760488738448,1.92,4110.6,4110.5,0.002]
[1760488738749,14.83738218,4110.6,4110.5,0.002]
[1760488738935,4.952943,4110.6,4110.5,0.002]
[1760488739139,4.952943,4110.6,4110.5,0.4532]
[1760488739335,1.92,4110.6,4110.5,0.4532]
[1760488739527,11.390015,4110.6,4110.5,0.4532]
[1760488739721,4.08791,4110.6,4110.5,0.4532]
[1760488740223,1.92,4110.6,4110.5,0.4532]
[1760488740425,7.358748,4110.6,4110.5,0.002]
[1760488740626,1.92,4110.6,4110.5,0.4532]
[1760488740944,5.21524,4110.6,4110.5,0.4532]
[1760488741244,4.072,4110.6,4110.5,0.4532]